bitfinex/quotes_SOLUSD_20250414
["timestamp","ask_amount","ask_price","bid_price","bid_amount"]
[1744655460814,80.8,130.09,130.05,16.55291708]
[1744655461141,0.063,130.1,130.08,16.55291708]
[1744655462703,0.063,130.1,130.09,24.23981708]
[1744655464135,0.063,130.15,130.09,43.45721708]
[1744655464327,0.063,130.15,130.09,26.9043]
[1744655464510,0.063,130.15,130.13,16.55291708]
[1744655464704,0.063,130.15,130.14,16.55291708]
[1744655464924,0.063,130.15,130.14,24.23691708]
[1744655465319,0.063,130.15,130.14,7.684]
[1744655465519,0.063,130.15,130.14,24.23691708]
[1744655467839,0.063,130.15,130.11,19.2136]
[1744655468068,0.063,130.15,130.1,7.6863]
[1744655468231,0.063,130.15,130.11,16.55291708]
[1744655468538,0.063,130.15,130.12,16.55291708]
[1744655469830,0.063,130.15,130.14,7.684]
[1744655470328,0.063,130.15,130.13,16.55291708]
[1744655470631,0.063,130.15,130.13,24.23731708]
[1744655471214,0.063,130.15,130.13,7.6844]
[1744655471513,0.063,130.15,130.13,24.23731708]
[1744655471837,0.063,130.15,130.14,16.55291708]
[1744655472042,0.063,130.15,130.14,24.23691708]
[1744655472222,0.063,130.15,130.14,16.55291708]
[1744655472547,0.063,130.15,130.13,24.23721708]
[1744655473142,0.063,130.15,130.14,33.10583416]
[1744655473828,0.063,130.15,130.14,16.55291708]
[1744655474324,0.063,130.15,130.14,24.23691708]
[1744655474531,0.063,130.15,130.14,7.684]
[1744655474845,0.063,130.15,130.14,24.23691708]
[1744655477148,0.063,130.15,130.14,7.684]
[1744655477349,0.063,130.15,130.14,24.23691708]
[1744655478222,0.063,130.15,130.14,7.684]
[1744655478545,0.063,130.15,130.14,24.23691708]
[1744655478938,0.063,130.15,130.14,40.78983416]
[1744655479832,0.0001,130.15,130.14,40.78983416]
[1744655481335,0.063,130.18,130.17,26.0]
[1744655481539,0.063,130.18,130.17,42.55291708]
[1744655482756,0.063,130.18,130.17,50.23511708]
[1744655484252,0.063,130.18,130.17,24.23511708]
[1744655485155,0.063,130.18,130.15,16.55291708]
[1744655485449,0.063,130.18,130.17,16.55291708]
[1744655486457,0.063,130.18,130.17,24.23511708]
[1744655489358,0.063,130.18,130.17,50.23511708]
[1744655490663,0.063,130.19,130.17,50.23511708]
[1744655490862,0.03,130.21,130.18,16.55291708]
[1744655491165,0.03,130.21,130.2,16.55291708]
[1744655491340,0.03,130.21,130.2,33.10583416]
[1744655492138,0.03,130.21,130.2,16.55291708]
[1744655493764,0.03,130.21,130.2,24.23331708]
[1744655494462,0.03,130.21,130.2,7.6804]
[1744655496562,0.03,130.21,130.19,16.55291708]
[1744655496563,0.03,130.21,130.19,24.23361708]
[1744655496765,0.03,130.21,130.17,16.55291708]
[1744655496955,16.55291708,130.2,130.14,19.2086]
[1744655497141,16.55291708,130.19,130.15,7.6834]
[1744655497339,16.55291708,130.18,130.15,7.6834]
[1744655497541,16.55291708,130.18,130.13,7.6846]
[1744655497781,16.55291708,130.18,130.14,16.55291708]
[1744655499573,16.69507865,130.19,130.15,7.6834]
[1744655499791,0.03,130.21,130.18,16.55291708]
[1744655500151,16.58291708,130.21,130.15,26.892]
[1744655500356,16.55291708,130.2,130.16,16.55291708]
[1744655500978,16.58291708,130.21,130.16,16.55291708]
[1744655501174,16.55291708,130.19,130.15,24.23631708]
[1744655502278,16.55291708,130.19,130.15,7.6834]
[1744655502476,16.55291708,130.18,130.15,7.6834]
[1744655502654,35.48688908,130.19,130.15,7.6834]
[1744655505555,18.933972,130.17,130.11,19.2144]
[1744655505748,16.55291708,130.14,130.09,24.23981708]
[1744655505966,16.55291708,130.13,130.09,24.23981708]
[1744655506161,16.55291708,130.14,130.09,24.23981708]
[1744655506575,16.55291708,130.15,130.11,16.55291708]
[1744655506876,16.55291708,130.15,130.1,16.55291708]
[1744655507083,16.55291708,130.14,130.1,16.55291708]
[1744655507256,16.55291708,130.14,130.11,7.6858]
[1744655507782,35.48688908,130.16,130.11,24.23871708]
[1744655507966,16.55291708,130.17,130.13,16.55291708]
[1744655508283,35.20256594,130.17,130.13,16.55291708]
[1744655508664,105.31984022,130.18,130.13,16.55291708]
[1744655508868,88.76692314,130.18,130.14,16.55291708]
[1744655509380,105.31984022,130.18,130.14,24.23631708]
[1744655510176,80.8,130.18,130.16,16.55291708]
[1744655510385,11.18,130.19,130.16,16.55291708]
[1744655510573,16.55291708,130.2,130.16,16.55291708]
[1744655511261,16.55291708,130.19,130.15,16.55291708]
[1744655511457,16.55291708,130.19,130.15,24.23621708]
[1744655512688,16.55291708,130.19,130.15,7.6833]
[1744655514260,16.55291708,130.19,130.15,24.23621708]
[1744655515102,16.55291708,130.2,130.15,24.23621708]
[1744655515385,0.03,130.21,130.19,16.55291708]
[1744655515564,0.03,130.21,130.2,16.55291708]
[1744655515879,0.03,130.21,130.19,16.55291708]
[1744655516184,0.03,130.21,130.2,7.6804]
[1744655516685,16.58291708,130.21,130.16,7.6828]
[1744655516860,16.58291708,130.21,130.17,16.55291708]
[1744655517190,18.933972,130.2,130.16,24.23571708]
[1744655517387,16.55291708,130.19,130.15,7.6832]
[1744655517889,35.48688908,130.18,130.14,7.6838]
[1744655518059,16.55291708,130.17,130.14,7.6838]
[1744655518267,16.83724022,130.18,130.14,24.23671708]
[1744655518466,18.19141708,130.19,130.15,16.55291708]
[1744655518985,16.55291708,130.18,130.14,24.23671708]
[1744655519989,20.28814886,130.19,130.14,24.23671708]
[1744655520191,16.55291708,130.18,130.14,24.23671708]
[1744655520602,16.55291708,130.18,130.14,7.6838]
[1744655520890,16.55291708,130.18,130.14,24.23671708]
[1744655521469,36.84106594,130.19,130.15,16.55291708]
[1744655522270,36.84106594,130.19,130.15,24.23601708]
[1744655522471,16.55291708,130.18,130.13,7.6846]
[1744655522775,16.55291708,130.18,130.13,24.23751708]
[1744655523100,35.20256594,130.18,130.14,16.55291708]
[1744655523289,35.20256594,130.18,130.13,7.6846]
[1744655523584,16.55291708,130.15,130.11,24.23871708]
[1744655524173,16.55291708,130.16,130.11,24.23871708]
[1744655524469,35.34472751,130.17,130.13,16.55291708]
[1744655524671,18.79181043,130.17,130.14,16.55291708]
[1744655524872,108.53291708,130.18,130.11,19.2145]
[1744655524873,91.98,130.18,130.15,16.55291708]
[1744655525198,0.03,130.21,130.17,16.55291708]
[1744655525492,0.03,130.21,130.14,27.73291708]
[1744655525493,0.03,130.21,130.2,33.10583416]
[1744655526373,0.03,130.21,130.2,40.78623416]
[1744655526590,0.03,130.21,130.2,24.23331708]
[1744655527369,0.03,130.21,130.2,34.07579049]
[1744655530394,0.03,130.21,130.2,60.47118098]
[1744655531399,0.03,130.21,130.2,34.07579049]
[1744655531601,0.03,130.21,130.2,7.6804]
[1744655531779,0.03,130.21,130.2,34.07579049]
[1744655533110,0.03,130.21,130.2,60.47118098]
[1744655534673,0.03,130.23,130.2,79.67238098]
[1744655534996,0.03,130.23,130.22,26.39539049]
[1744655535202,0.03,130.23,130.22,34.07469049]
[1744655535398,0.0001,130.23,130.22,34.07469049]
[1744655538695,0.0001,130.24,130.22,34.07469049]
[1744655539007,0.0001,130.25,130.23,26.39539049]
[1744655539176,0.063,130.27,130.24,52.39539049]
[1744655539376,0.063,130.27,130.26,34.07229049]
[1744655539911,0.063,130.27,130.23,7.6787]
[1744655539912,26.45839049,130.27,130.23,7.6787]
[1744655540095,0.063,130.27,130.24,26.39539049]
[1744655540275,0.063,130.27,130.26,26.39539049]
[1744655541498,0.063,130.27,130.25,26.39539049]
[1744655542098,0.063,130.27,130.23,19.1968]
[1744655542099,0.063,130.27,130.26,26.39539049]
[1744655544215,0.063,130.27,130.26,7.6769]
[1744655544403,0.063,130.27,130.26,34.07229049]
[1744655545202,0.063,130.27,130.26,60.46768098]
[1744655545730,0.063,130.27,130.26,34.07229049]
[1744655548788,0.063,130.27,130.26,7.6769]
[1744655549298,0.063,130.27,130.26,24.16506962]
[1744655551814,0.063,130.27,130.26,40.65323924]
[1744655552607,0.03,130.28,130.26,40.65323924]
[1744655552802,0.0001,130.28,130.27,16.48816962]
[1744655553127,0.03,130.31,130.27,16.48816962]
[1744655553290,0.03,130.31,130.3,16.48816962]
[1744655553816,0.03,130.31,130.3,24.16266962]
[1744655555215,0.03,130.31,130.3,7.6745]
[1744655555720,0.03,130.31,130.3,24.16266962]
[1744655556215,0.03,130.34,130.3,118.65041124]
[1744655556395,0.03,130.34,130.33,16.48816962]
[1744655558100,0.03,130.34,130.33,24.16096962]
[1744655568829,0.0001,130.34,130.33,24.16096962]
[1744655572412,0.0001,130.34,130.33,7.6728]
[1744655572612,0.0001,130.34,130.33,24.16096962]
[1744655575343,0.0001,130.34,130.31,16.48816962]
[1744655575522,0.0001,130.34,130.31,24.16176962]
[1744655575724,0.0001,130.34,130.33,16.48816962]
[1744655576238,0.0001,130.34,130.32,16.48816962]
[1744655576552,0.0001,130.34,130.31,24.16176962]
[1744655576736,0.0001,130.34,130.31,7.6736]
[1744655576944,16.48826962,130.34,130.31,7.6736]
[1744655577345,0.0001,130.34,130.31,7.6736]
[1744655577560,0.0001,130.34,130.27,0.063]
[1744655577561,7.8088,130.31,130.27,0.063]
[1744655577729,16.48816962,130.3,130.27,0.063]
[1744655578278,16.48816962,130.28,130.27,0.063]
[1744655578930,46.86646476,130.28,130.27,0.063]
[1744655579327,44.933972,130.24,130.2,0.063]
[1744655579555,16.48816962,130.21,130.2,0.063]
[1744655579853,16.48816962,130.22,130.2,0.063]
[1744655580669,16.48816962,130.21,130.2,0.063]
[1744655581153,16.48816962,130.25,130.2,16.55116962]
[1744655581449,16.48816962,130.24,130.2,16.55116962]
[1744655581632,38.05519514,130.26,130.2,16.55116962]
[1744655581833,16.48816962,130.24,130.2,16.55116962]
[1744655582457,16.48816962,130.24,130.21,7.6799]
[1744655583263,16.48816962,130.25,130.21,24.16806962]
[1744655583436,30.093972,130.26,130.21,7.6799]
[1744655583437,16.48816962,130.24,130.21,7.6799]
[1744655585462,16.48816962,130.24,130.2,7.7434]
[1744655586374,18.933972,130.22,130.2,0.063]
[1744655586539,36.98804162,130.21,130.2,0.063]
[1744655587543,44.66794162,130.21,130.2,0.063]
[1744655587752,44.95226476,130.21,130.2,0.063]
[1744655588042,136.91226476,130.21,130.2,0.063]
[1744655588959,93.5259,130.21,130.2,0.063]
[1744655589149,6.37196157,130.22,130.2,0.063]
[1744655589150,6.2298,130.22,130.2,0.063]
[1744655590866,22.71796962,130.22,130.2,0.063]
[1744655593945,6.2298,130.22,130.2,0.063]
[1744655595683,0.14216157,130.24,130.2,16.55116962]
[1744655595863,18.933972,130.24,130.21,16.48816962]
[1744655597950,18.933972,130.24,130.2,24.23116962]
[1744655598777,80.8,130.25,130.23,16.48816962]
[1744655599075,18.933972,130.28,130.24,16.48816962]
[1744655599254,18.933972,130.28,130.25,16.48816962]
[1744655599569,35.42214162,130.28,130.24,16.48816962]
[1744655600075,35.42214162,130.28,130.24,24.16586962]
[1744655600576,16.48816962,130.25,130.2,0.063]
[1744655600758,16.48816962,130.23,130.2,7.7432]
[1744655601275,35.42214162,130.21,130.2,0.063]
[1744655603486,59.87453438,130.21,130.2,0.063]
[1744655604070,66.52673438,130.21,130.2,0.063]
[1744655604273,50.03856476,130.21,130.2,0.063]
[1744655605165,19.21829514,130.2,130.19,0.063]
[1744655605373,52.19463438,130.2,130.19,0.063]
[1744655606073,35.70646476,130.2,130.19,0.063]
[1744655606262,80.8,130.2,130.19,0.063]
[1744655607675,116.22214162,130.2,130.19,0.063]
[1744655607846,116.50646476,130.2,130.19,0.063]
[1744655608167,140.67503438,130.2,130.19,0.063]
[1744655609460,124.18686476,130.2,130.19,0.063]
[1744655610473,116.22214162,130.2,130.19,0.063]
[1744655610695,80.8,130.2,130.19,0.063]
[1744655611582,80.8,130.2,130.19,7.744]
[1744655611755,16.48816962,130.22,130.19,7.744]
[1744655613260,35.42214162,130.23,130.19,7.744]
[1744655613459,16.48816962,130.22,130.19,7.744]
[1744655613661,35.27998005,130.23,130.19,7.744]
[1744655613979,11.16,130.24,130.2,16.48816962]
[1744655614564,27.64816962,130.24,130.2,16.48816962]
[1744655615391,35.42214162,130.23,130.19,16.55116962]
[1744655615691,16.48816962,130.22,130.19,7.7438]
[1744655615893,16.48816962,130.21,130.19,7.7438]
[1744655616469,16.48816962,130.21,130.19,0.063]
[1744655617101,16.48816962,130.2,130.19,0.063]
[1744655617594,35.42214162,130.2,130.19,0.063]
[1744655617783,35.70646476,130.2,130.19,0.063]
[1744655617977,43.38686476,130.2,130.19,0.063]
[1744655618895,59.87503438,130.2,130.19,0.063]
[1744655621001,43.38686476,130.2,130.19,0.063]
[1744655622902,59.87503438,130.2,130.19,0.063]
[1744655623102,61.48293438,130.2,130.19,0.063]
[1744655623307,16.77249276,130.17,130.16,0.063]
[1744655623509,27.93249276,130.17,130.16,0.063]
[1744655624105,46.86646476,130.17,130.16,0.063]
[1744655625405,54.54866476,130.17,130.16,0.063]
[1744655628213,30.093972,130.17,130.16,0.063]
[1744655628406,46.58214162,130.17,130.16,0.063]
[1744655628589,54.26434162,130.17,130.16,0.063]
[1744655629413,0.14216157,130.16,130.14,0.063]
[1744655629612,45.21829514,130.13,130.12,0.063]
[1744655629824,61.70646476,130.13,130.12,0.063]
[1744655630217,19.21829514,130.12,130.1,0.063]
[1744655630521,46.86646476,130.11,130.1,0.063]
[1744655630729,0.28432314,130.09,130.08,0.063]
[1744655631028,52.19463438,130.09,130.08,0.063]
[1744655631513,35.70646476,130.09,130.08,0.063]
[1744655632322,43.39336476,130.09,130.08,0.063]
[1744655633105,79.86909024,130.09,130.08,0.063]
[1744655635598,86.45799024,130.09,130.08,0.063]
[1744655636724,59.97604269,130.09,130.08,0.063]
[1744655637919,45.21829514,130.07,130.06,0.063]
[1744655638127,73.34834269,130.07,130.06,0.063]
[1744655639015,81.03644269,130.07,130.06,0.063]
[1744655640224,71.41591955,130.07,130.06,0.063]
[1744655640535,53.38834269,130.07,130.06,0.063]
[1744655640833,45.41591955,130.07,130.06,0.063]
[1744655641009,80.8,130.08,130.06,34.23364755]
[1744655641327,26.48194755,130.09,130.06,0.063]
[1744655641534,26.48194755,130.11,130.07,26.48194755]
[1744655642000,26.48194755,130.1,130.06,0.063]
[1744655642337,18.933972,130.1,130.06,26.54494755]
[1744655642517,26.48194755,130.11,130.06,26.54494755]
[1744655642835,26.48194755,130.1,130.06,26.54494755]
[1744655643008,26.48194755,130.1,130.07,7.6881]
[1744655643209,26.48194755,130.1,130.06,7.7514]
[1744655643418,26.48194755,130.09,130.06,0.063]
[1744655643717,26.48194755,130.07,130.06,0.063]
[1744655643908,26.48194755,130.08,130.06,7.7517]
[1744655644114,37.64194755,130.1,130.06,7.7517]
[1744655644323,37.64194755,130.1,130.06,34.23364755]
[1744655644608,11.16,130.1,130.06,34.23364755]
[1744655645229,45.27375798,130.11,130.07,26.48194755]
[1744655645424,45.27375798,130.11,130.06,53.45544755]
[1744655645740,26.48194755,130.08,130.06,7.7516]
[1744655646424,26.48194755,130.09,130.06,7.7516]
[1744655646804,26.48194755,130.09,130.06,0.063]
[1744655647122,26.48194755,130.08,130.06,0.063]
[1744655648533,45.70024269,130.07,130.06,0.063]
[1744655648737,126.50024269,130.07,130.06,0.063]
[1744655649917,11.16,130.09,130.06,0.063]
[1744655650117,37.64194755,130.09,130.06,0.063]
[1744655651031,26.48194755,130.09,130.06,0.063]
[1744655651237,107.28194755,130.11,130.07,26.48194755]
[1744655651730,80.8,130.11,130.08,26.48194755]
[1744655652332,107.28194755,130.11,130.06,0.063]
[1744655652640,107.28194755,130.11,130.07,26.48194755]
[1744655652842,80.8,130.11,130.08,7.6875]
[1744655653634,80.8,130.11,130.08,34.16944755]
[1744655654337,18.933972,130.16,130.1,26.48194755]
[1744655654637,26.48194755,130.15,130.11,26.48194755]
[1744655654821,45.41591955,130.16,130.12,7.6852]
[1744655655027,45.27375798,130.16,130.12,7.6852]
[1744655656044,118.44194755,130.17,130.12,34.16714755]
[1744655656223,26.48194755,130.19,130.14,26.48194755]
[1744655656416,26.62410912,130.2,130.15,26.48194755]
[1744655657137,118.44194755,130.21,130.17,26.48194755]
[1744655657543,118.44194755,130.21,130.16,34.16474755]
[1744655657720,91.96,130.21,130.17,26.48194755]
[1744655658127,118.44194755,130.21,130.17,26.48194755]
[1744655659147,118.44194755,130.21,130.17,34.16374755]
[1744655660243,118.44194755,130.21,130.17,7.6818]
[1744655660445,126.12184755,130.21,130.17,7.6818]
[1744655660747,118.44194755,130.21,130.17,7.6818]
[1744655661046,118.44194755,130.21,130.16,26.48194755]
[1744655661749,80.8,130.21,130.18,26.48194755]
[1744655662049,26.48194755,130.22,130.18,26.48194755]
[1744655663354,34.16124755,130.22,130.17,26.48194755]
[1744655663552,26.48194755,130.2,130.14,26.0]
[1744655663723,26.48194755,130.2,130.15,26.48194755]
[1744655664144,26.48194755,130.2,130.16,26.48194755]
[1744655664348,26.62410912,130.21,130.16,26.48194755]
[1744655664553,26.48194755,130.22,130.18,26.48194755]
[1744655664724,34.16134755,130.22,130.18,26.48194755]
[1744655665044,34.16134755,130.22,130.17,26.48194755]
[1744655665528,26.48194755,130.21,130.17,26.48194755]
[1744655665723,45.27375798,130.23,130.18,26.48194755]
[1744655665924,52.95245798,130.23,130.18,26.48194755]
[1744655666149,26.48194755,130.22,130.17,28.09674755]
[1744655666442,26.48194755,130.2,130.15,26.48194755]
[1744655666947,26.48194755,130.2,130.14,1.555]
[1744655666948,26.48194755,130.2,130.16,26.48194755]
[1744655667746,7.681,130.19,130.16,26.48194755]
[1744655668451,7.681,130.19,130.15,26.48194755]
[1744655669326,34.16264755,130.2,130.16,26.48194755]
[1744655669545,107.28194755,130.22,130.17,26.48194755]
[1744655669852,114.96144755,130.22,130.17,26.48194755]
[1744655670426,134.15964755,130.22,130.17,26.48194755]
[1744655670634,26.48194755,130.2,130.15,26.48194755]
[1744655671241,26.48194755,130.2,130.14,1.555]
[1744655671553,26.48194755,130.19,130.15,26.48194755]
[1744655671860,7.6834,130.15,130.11,1.5924]
[1744655672159,26.48194755,130.14,130.11,1.5924]
[1744655672759,26.48194755,130.13,130.08,26.48194755]
[1744655672956,26.48194755,130.13,130.07,9.2769]
[1744655673138,26.48194755,130.13,130.09,26.48194755]
[1744655673757,26.48194755,130.13,130.07,9.2769]
[1744655673927,26.48194755,130.11,130.07,28.07104755]
[1744655674658,26.48194755,130.1,130.06,32.97474755]
[1744655674857,26.48194755,130.1,130.06,0.063]
[1744655675336,26.48194755,130.1,130.06,26.54494755]
[1744655675535,26.48194755,130.11,130.07,26.48194755]
[1744655675734,26.48194755,130.11,130.06,26.54494755]
[1744655676052,34.16824755,130.11,130.06,34.23364755]
[1744655676654,26.0,130.08,130.06,0.063]
[1744655676865,26.48194755,130.07,130.06,0.063]
[1744655678333,34.17004755,130.08,130.06,0.063]
[1744655678537,26.48194755,130.07,130.06,0.063]
[1744655678747,34.17004755,130.08,130.06,0.063]
[1744655680063,26.48194755,130.07,130.06,0.063]
[1744655680849,18.79181043,130.09,130.06,0.063]
[1744655680850,26.48194755,130.08,130.06,0.063]
[1744655681258,26.48194755,130.07,130.06,0.063]
[1744655681936,26.48194755,130.09,130.06,0.063]
[1744655682165,45.69914755,130.1,130.06,0.063]
[1744655682368,26.48194755,130.09,130.06,0.063]
[1744655684062,45.69914755,130.1,130.06,0.063]
[1744655685165,26.48194755,130.1,130.06,0.063]
[1744655685463,26.48194755,130.1,130.06,26.54494755]
[1744655685663,26.48194755,130.1,130.06,0.063]
[1744655685966,26.48194755,130.1,130.06,26.54494755]
[1744655686341,80.8,130.11,130.07,26.48194755]
[1744655686758,107.28194755,130.11,130.07,26.48194755]
[1744655687467,80.8,130.11,130.08,26.48194755]
[1744655687670,11.16,130.14,130.09,26.48194755]
[1744655687671,26.48194755,130.13,130.09,26.48194755]
[1744655688179,26.48194755,130.12,130.07,26.48194755]
[1744655688770,26.48194755,130.11,130.07,26.48194755]
[1744655689552,26.48194755,130.09,130.06,0.063]
[1744655689759,25.73194755,130.09,130.06,0.063]
[1744655690173,26.48194755,130.07,130.06,0.063]
[1744655690342,45.27375798,130.07,130.06,0.063]
[1744655692672,52.96185798,130.07,130.06,0.063]
[1744655692867,53.38834269,130.07,130.06,0.0001]
[1744655694772,52.96185798,130.07,130.06,0.0001]
[1744655697278,43.03068814,130.07,130.06,0.0001]
[1744655698164,26.47991043,130.07,130.06,0.0001]
[1744655698373,43.03068814,130.07,130.06,0.0001]
[1744655698847,24.23887771,130.07,130.06,0.0001]
[1744655699251,7.6881,130.07,130.06,0.0001]
[1744655699464,24.23887771,130.07,130.06,0.0001]
[1744655700381,43.45717285,130.07,130.06,0.0001]
[1744655704580,0.28432314,130.06,130.05,0.0001]
[1744655704779,16.83510085,130.06,130.05,0.0001]
[1744655705086,16.83510085,130.06,130.04,3.6e-05]
[1744655705087,19.21829514,130.05,130.04,3.6e-05]
[1744655705259,19.21829514,130.05,130.01,0.03]
[1744655705260,0.28432314,130.02,130.01,0.03]
[1744655705579,33.38587856,130.02,130.01,0.03]
[1744655706562,41.07697856,130.02,130.01,0.03]
[1744655707376,60.01095056,130.02,130.01,0.0001]
[1744655707681,100.01829514,130.01,129.99,0.0001]
[1744655707882,35.76907285,130.0,129.98,0.0001]
[1744655708086,44.933972,129.95,129.94,0.03]
[1744655708257,61.48474971,129.95,129.94,0.03]
[1744655708763,69.17994971,129.95,129.94,0.03]
[1744655709169,79.15948637,129.95,129.94,0.03]
[1744655709368,79.44380951,129.95,129.94,0.03]
[1744655709579,79.44380951,129.95,129.85,17.3256]
[1744655709580,45.74860951,129.94,129.86,28.13431437]
[1744655709776,45.74860951,129.94,129.86,1.604]
[1744655709777,0.28432314,129.93,129.86,1.604]
[1744655710089,26.53031437,129.89,129.82,7.7696]
[1744655710266,26.53031437,129.88,129.83,26.53031437]
[1744655710586,18.933972,129.9,129.82,7.7696]
[1744655710587,26.53031437,129.87,129.82,7.7696]
[1744655710762,7.7006,129.86,129.82,7.7696]
[1744655710970,26.53031437,129.85,129.82,1.604]
[1744655711265,26.53031437,129.85,129.79,7.8501]
[1744655711769,26.53031437,129.85,129.81,26.53031437]
[1744655711968,53.48241437,129.86,129.81,26.53031437]
[1744655712271,26.53031437,129.85,129.8,26.53031437]
[1744655712470,26.81463751,129.81,129.78,2.7137455]
[1744655712677,7.7047,129.79,129.78,2.7137455]
[1744655713285,34.23501437,129.79,129.78,2.7137455]
[1744655713594,18.8641,129.81,129.78,2.7137455]
[1744655713771,45.39441437,129.81,129.78,2.7137455]
[1744655713972,26.53031437,129.8,129.78,2.7137455]
[1744655714175,152.79460074,129.79,129.78,2.7137455]
[1744655714403,153.07892388,129.79,129.78,4.55e-05]
[1744655714695,78.90882388,129.79,129.78,4.55e-05]
[1744655714897,86.61352388,129.79,129.78,4.55e-05]
[1744655715094,92.74811047,129.79,129.78,4.55e-05]
[1744655715270,18.933972,129.75,129.68,26.56031437]
[1744655715472,18.64964886,129.73,129.68,26.56031437]
[1744655715676,37.83247594,129.74,129.69,26.53031437]
[1744655715876,37.83247594,129.74,129.7,26.53031437]
[1744655716098,26.28432314,129.76,129.71,26.53031437]
[1744655716292,11.16,129.77,129.72,26.53031437]
[1744655716477,26.53031437,129.76,129.72,26.53031437]
[1744655716676,26.53031437,129.76,129.71,26.53031437]
[1744655716999,34.23711437,129.76,129.71,26.53031437]
[1744655717292,26.53031437,129.74,129.69,26.0]
[1744655717493,26.53031437,129.74,129.7,26.53031437]
[1744655717793,18.933972,129.75,129.71,26.53031437]
[1744655718099,45.46428637,129.73,129.69,26.53031437]
[1744655718901,45.46428637,129.77,129.72,26.53031437]
[1744655719098,26.53031437,129.74,129.69,26.53031437]
[1744655720698,45.46428637,129.72,129.68,0.03]
[1744655721198,26.53031437,129.71,129.68,0.03]
[1744655721399,45.46428637,129.72,129.68,0.03]
[1744655721702,11.18,129.73,129.68,26.56031437]
[1744655721703,37.71031437,129.73,129.68,26.56031437]
[1744655721873,37.71031437,129.73,129.69,26.53031437]
[1744655722071,11.18,129.73,129.69,26.53031437]
[1744655722398,37.71031437,129.73,129.68,34.27151437]
[1744655722604,26.53031437,129.72,129.68,26.56031437]
[1744655722774,26.53031437,129.73,129.69,26.53031437]
[1744655722977,45.3221248,129.74,129.69,26.53031437]
[1744655723495,118.65247594,129.75,129.7,26.53031437]
[1744655723806,91.98,129.75,129.71,26.53031437]
[1744655724178,118.51031437,129.75,129.71,26.53031437]
[1744655724602,118.51031437,129.75,129.71,34.23971437]
[1744655726102,118.51031437,129.75,129.71,26.53031437]
[1744655726508,91.98,129.75,129.71,34.23961437]
[1744655727195,91.98,129.75,129.72,26.53031437]
[1744655727389,11.18,129.75,129.72,26.53031437]
[1744655727577,11.18,129.75,129.71,34.23961437]
[1744655727783,26.53031437,129.74,129.69,7.7106]
[1744655728091,37.821072,129.75,129.68,0.03]
[1744655728092,26.53031437,129.72,129.68,0.03]
[1744655728291,26.53031437,129.72,129.68,26.56031437]
[1744655728503,26.53031437,129.72,129.68,0.03]
[1744655729106,26.53031437,129.7,129.68,0.03]
[1744655729505,45.46428637,129.69,129.68,0.03]
[1744655729803,45.74860951,129.69,129.68,0.03]
[1744655730986,53.45920951,129.69,129.68,0.03]
[1744655732179,53.45920951,129.69,129.63,0.03]
[1744655732180,18.933972,129.65,129.63,0.03]
[1744655732386,37.99463751,129.64,129.63,0.03]
[1744655732980,45.70823751,129.64,129.63,0.03]
[1744655733419,37.71031437,129.64,129.63,0.03]
[1744655733712,45.46428637,129.65,129.63,0.03]
[1744655733900,45.46428637,129.64,129.63,0.03]
[1744655734104,26.53031437,129.64,129.63,0.03]
[1744655734503,26.0,129.64,129.63,0.03]
[1744655734814,80.8,129.64,129.63,0.03]
[1744655738911,37.71031437,129.66,129.63,0.03]
[1744655739790,11.18,129.66,129.63,0.03]
[1744655739996,11.18,129.66,129.63,26.56031437]
[1744655740502,11.18,129.66,129.64,26.53031437]
[1744655740821,120.08311437,129.73,129.65,26.53031437]
[1744655740991,80.8,129.73,129.71,26.53031437]
[1744655741198,0.063,129.75,129.71,26.53031437]
[1744655741395,26.87763751,129.75,129.71,26.53031437]
[1744655741591,0.063,129.75,129.71,26.53031437]
[1744655741792,0.063,129.75,129.74,26.53031437]
[1744655743039,0.063,129.75,129.7,6.1594]
[1744655743231,0.063,129.75,129.74,26.53031437]
[1744655743400,0.063,129.81,129.74,26.53031437]